bitfinex-derivatives/quotes_ETHF0:USTF0_20241013
["timestamp","ask_amount","ask_price","bid_price","bid_amount"]
[1728845449676,3.61652,2447.0,2446.9,1.2202]
[1728845452688,0.40879,2446.6,2446.4,4.27813457]
[1728845452975,2.24596,2446.9,2446.5,0.98585998]
[1728845453181,0.40879,2446.6,2446.5,1.21239]
[1728845453376,0.40879,2446.6,2446.5,0.98587214]
[1728845453887,0.40879,2446.6,2446.5,1.39467214]
[1728845454083,0.40879,2446.6,2446.5,0.98587214]
[1728845454278,0.40879,2446.6,2446.5,1.2124]
[1728845455078,0.40879,2446.6,2446.5,0.8036]
[1728845455683,0.79579,2446.6,2446.5,0.8036]
[1728845456583,0.79579,2446.6,2446.5,0.415]
[1728845459883,0.79579,2446.6,2446.5,1.745]
[1728845465489,2.12579,2446.6,2446.5,1.745]
[1728845467998,0.40879,2446.6,2446.5,1.745]
[1728845468202,3.2078,2446.7,2446.5,1.745]
[1728845468203,0.40878,2446.7,2446.5,1.745]
[1728845468398,0.40877,2446.7,2446.6,1.33]
[1728845468698,0.40877,2446.7,2446.6,1.7414]
[1728845470895,0.40877,2446.7,2446.6,0.4114]
[1728845474800,0.40879,2446.6,2446.5,1.745]
[1728845475396,0.40879,2446.6,2446.4,0.8363]
[1728845475597,0.40885,2446.2,2446.1,1.7216]
[1728845475806,0.40892,2445.8,2445.7,1.33]
[1728845476104,0.12542,2445.8,2445.7,1.744]
[1728845476304,0.40892,2445.8,2445.7,1.744]
[1728845477211,0.40892,2445.8,2445.7,2.1356]
[1728845478310,0.40892,2445.8,2445.7,2.54454]
[1728845478704,0.40892,2445.8,2445.7,2.1356]
[1728845479410,0.40892,2445.8,2445.7,2.54454]
[1728845479605,3.9997,2446.1,2445.7,2.54454]
[1728845479606,0.40892,2445.9,2445.8,0.40892]
[1728845479912,0.40892,2445.9,2445.8,1.73892]
[1728845482803,0.40892,2445.9,2445.8,1.33]
[1728845484407,0.40892,2445.9,2445.8,1.73892]
[1728845484803,0.40889,2446.0,2445.9,0.4089]
[1728845485008,0.40889,2446.0,2445.9,1.7389]
[1728845485407,3.2078,2446.1,2445.9,1.7389]
[1728845485607,3.61667,2446.1,2446.0,2.13649]
[1728845486206,3.61667,2446.1,2446.0,1.7276]
[1728845487916,3.61667,2446.1,2445.5,0.40897]
[1728845487917,8.6258,2446.1,2445.5,0.40897]
[1728845488111,0.40895,2445.6,2445.5,1.7474]
[1728845493114,3.2078,2445.8,2445.5,1.7474]
[1728845493428,3.61673,2445.8,2445.7,1.73894]
[1728845493719,3.61673,2445.8,2445.7,1.33]
[1728845494015,3.61672,2445.8,2445.7,1.33]
[1728845495720,0.40895,2445.6,2445.5,0.4174]
[1728845495914,0.40895,2445.6,2445.5,1.7474]
[1728845497124,0.30975,2445.6,2445.5,1.7474]
[1728845503230,0.30975,2445.6,2445.5,2.1458]
[1728845503927,0.30975,2445.6,2445.5,0.8158]
[1728845504328,1.63975,2445.6,2445.5,0.8158]
[1728845506638,1.63975,2445.6,2445.5,0.4174]
[1728845512233,0.30975,2445.6,2445.5,0.4174]
[1728845517537,1.63975,2445.6,2445.5,0.4174]
[1728845519335,3.24203936,2445.6,2445.5,0.60015496]
[1728845519535,1.63975,2445.6,2445.5,0.60015496]
[1728845520139,3.24203936,2445.6,2445.5,0.60015496]
[1728845520639,7.02108936,2445.6,2445.3,1.46403457]
[1728845520849,1.73899,2445.4,2445.3,0.3937]
[1728845521043,0.40899,2445.4,2445.3,2.83404714]
[1728845521235,2.01127936,2445.4,2445.3,2.83404714]
[1728845521544,2.01127936,2445.4,2445.3,2.9619218]
[1728845522843,2.40017936,2445.4,2445.3,2.9619218]
[1728845523245,0.79789,2445.4,2445.3,2.45066769]
[1728845523542,0.79789,2445.4,2445.3,3.43783105]
[1728845523737,0.79789,2445.4,2445.3,2.96217438]
[1728845523941,2.40017936,2445.4,2445.3,2.96217438]
[1728845524246,0.79789,2445.4,2445.3,2.96217438]
[1728845524448,2.40017936,2445.4,2445.3,2.96217438]
[1728845526847,0.79789,2445.4,2445.3,2.96217368]
[1728845527235,4.81008936,2445.5,2445.4,0.40899]
[1728845527437,1.60228936,2445.7,2445.4,10.85619131]
[1728845527643,1.60228936,2445.8,2445.7,0.40894]
[1728845527842,5.21899936,2445.9,2445.8,0.40892]
[1728845528033,5.21899936,2445.9,2445.8,2.20363504]
[1728845528238,4.81008936,2445.9,2445.8,2.20363504]
[1728845528435,1.60228936,2445.9,2445.8,7.62243504]
[1728845528635,1.60228936,2446.1,2446.0,0.40889]
[1728845528839,2.01114936,2446.2,2446.0,5.25440705]
[1728845529039,2.01114936,2446.2,2446.1,3.92570762]
[1728845529343,1.60228936,2446.2,2446.1,4.1814759]
[1728845529544,3.34113936,2446.3,2446.1,4.30930368]
[1728845529841,3.34113936,2446.3,2446.2,0.18290661]
[1728845531047,3.34112936,2446.3,2446.2,0.59175661]
[1728845532338,1.73884,2446.3,2446.2,0.59175661]
[1728845533242,1.73884,2446.3,2446.2,0.40885]
[1728845533849,1.33,2446.3,2446.1,2.12246]
[1728845534052,1.73885,2446.3,2446.1,2.12246]
[1728845534644,1.73885,2446.3,2446.2,0.40885]
[1728845534850,2.00698936,2446.4,2446.3,0.40884]
[1728845535050,3.74580936,2446.4,2446.3,0.8277]
[1728845536050,2.14352,2446.4,2446.3,0.8277]
[1728845536249,3.74580936,2446.4,2446.3,0.8277]
[1728845536448,2.14352,2446.4,2446.3,0.8277]
[1728845537852,1.7347,2446.4,2446.3,0.8277]
[1728845538053,3.34109936,2446.5,2446.3,2.56654]
[1728845538257,1.73881,2446.5,2446.3,2.56654]
[1728845538851,1.33,2446.5,2446.3,2.1577]
[1728845539251,1.73881,2446.5,2446.3,2.56653]
[1728845539849,1.73881,2446.5,2446.3,2.1577]
[1728845540058,1.73881,2446.5,2446.4,0.40882]
[1728845542258,0.40882,2446.4,2446.3,2.56653]
[1728845542655,1.33,2446.5,2446.3,2.1577]
[1728845542860,1.73882,2446.5,2446.3,2.56652]
[1728845543259,1.73882,2446.5,2446.4,0.40882]
[1728845544862,1.73882,2446.5,2446.4,0.80132]
[1728845545165,0.40882,2446.5,2446.4,0.80132]
[1728845547266,1.73882,2446.5,2446.4,0.80132]
[1728845549769,1.73882,2446.5,2446.4,0.3925]
[1728845551073,1.73882,2446.5,2446.4,0.80132]
[1728845551469,0.40882,2446.5,2446.4,0.80132]
[1728845551669,0.40879,2446.6,2446.5,0.4088]
[1728845551865,0.3902,2446.7,2446.5,1.33]
[1728845552072,0.40879,2446.6,2446.5,1.73879]
[1728845552267,0.79899,2446.7,2446.6,0.40879]
[1728845552668,0.40879,2446.6,2446.5,1.7388]
[1728845553275,0.40876,2446.8,2446.5,5.4172]
[1728845553476,3.2078,2446.9,2446.4,1.7225]
[1728845553477,3.2078,2446.9,2446.7,1.33]
[1728845553775,3.2078,2446.9,2446.8,1.63715]
[1728845553776,3.61655,2446.9,2446.8,1.63715]
[1728845554276,3.2078,2446.9,2446.8,2.96715]
[1728845554976,3.2078,2446.9,2446.8,7.05435]
[1728845557677,3.61654,2446.9,2446.8,7.05435]
[1728845558083,3.2078,2446.9,2446.8,2.96715]
[1728845558378,3.2078,2446.9,2446.8,1.63715]
[1728845558581,3.61654,2446.9,2446.8,1.2284]
[1728845558781,0.40875,2446.8,2446.7,0.40876]
[1728845559682,4.94655,2446.9,2446.8,0.40875]
[1728845561988,4.94655,2446.9,2446.6,1.33]
[1728845561989,4.5378,2446.9,2446.6,1.33]
[1728845562185,0.40877,2446.8,2446.7,0.40876]
[1728845562480,0.40877,2446.8,2446.7,1.73876]
[1728845565987,1.73875,2446.9,2446.8,0.40875]
[1728845566187,1.73874,2446.9,2446.8,0.40875]
[1728845568082,1.33,2446.9,2446.8,0.40875]
[1728845568280,1.73874,2446.9,2446.8,0.40875]
[1728845568692,4.00733,2447.0,2446.9,0.40874]
[1728845568889,3.5986,2447.0,2446.9,1.73874]
[1728845571890,4.00732,2447.0,2446.9,1.73874]
[1728845572085,3.2078,2447.0,2446.9,5.82514]
[1728845573187,3.61652,2447.0,2446.9,5.82514]
[1728845574493,3.61652,2447.0,2446.9,1.73874]
[1728845574795,3.61652,2447.0,2446.9,5.82514]
[1728845576091,3.2078,2447.0,2446.9,1.73874]
[1728845576401,3.2078,2447.0,2446.9,2.13314]
[1728845576696,3.2078,2447.0,2446.9,6.21954]
[1728845576908,1.69728936,2447.3,2446.9,13.01513192]
[1728845577093,2.01092936,2447.5,2447.4,0.40865]
[1728845577289,0.82623,2447.6,2447.5,0.40864]
[1728845577494,0.82623,2447.6,2447.5,2.52854]
[1728845577694,0.82623,2447.6,2447.5,2.1199]
[1728845577898,2.15623,2447.6,2447.5,1.7244]
[1728845579585,0.82623,2447.6,2447.5,1.7244]
[1728845580690,0.82623,2447.6,2447.5,1.33]
[1728845583396,0.82623,2447.6,2447.3,1.33]
[1728845583397,5.8332,2447.6,2447.3,1.33]
[1728845583597,5.8332,2447.6,2447.0,2.32569086]
[1728845583598,0.4087,2447.1,2447.0,2.32569086]
[1728845583806,0.4087,2447.1,2447.0,2.76607492]
[1728845583991,0.4087,2447.1,2447.0,2.5838]
[1728845584892,0.4087,2447.1,2447.0,2.99252]
[1728845585097,0.4087,2447.1,2447.0,2.5838]
[1728845585596,1.33,2447.1,2446.7,1.07189086]
[1728845585902,0.40875,2446.8,2446.7,2.96107]
[1728845586088,0.40875,2446.8,2446.7,3.14342666]
[1728845587403,0.40875,2446.8,2446.7,2.32202666]
[1728845587593,0.40875,2446.8,2446.7,1.91325666]
[1728845588097,0.40875,2446.8,2446.7,2.32202666]
[1728845591400,0.40875,2446.8,2446.7,2.13967]
[1728845591605,4.00505,2446.9,2446.8,0.40875]
[1728845592708,4.00505,2446.9,2446.8,1.73875]
[1728845593203,4.00505,2446.9,2446.8,1.92120321]
[1728845593705,4.00505,2446.9,2446.8,1.92121271]
[1728845594098,4.00505,2446.9,2446.8,1.92121067]
[1728845594295,4.00505,2446.9,2446.8,1.51246067]
[1728845594496,4.9263,2446.9,2446.7,1.7309]
[1728845594703,0.40875,2446.8,2446.7,1.7309]
[1728845594908,0.40875,2446.8,2446.7,1.91340296]
[1728845595305,1.73875,2446.8,2446.7,1.91340296]
[1728845596409,0.40875,2446.8,2446.7,2.32217296]
[1728845597708,0.40875,2446.8,2446.7,2.32223369]
[1728845598508,0.40875,2446.8,2446.7,2.3222435]
[1728845598706,0.40875,2446.8,2446.7,1.9134835]
[1728845599110,0.40875,2446.8,2446.7,2.3222535]
[1728845600708,0.40875,2446.8,2446.7,1.9134835]
[1728845601414,0.40875,2446.8,2446.7,2.3222535]
[1728845601809,0.40875,2446.8,2446.7,1.9134835]
[1728845602003,0.40875,2446.8,2446.7,2.3222535]
[1728845603619,0.40875,2446.8,2446.7,1.9134835]
[1728845603910,2.01103936,2446.8,2446.7,1.9134835]
[1728845604113,7.42823936,2446.8,2446.7,0.1825835]
[1728845604309,0.40882,2446.4,2446.3,1.07189086]
[1728845604508,1.73882,2446.4,2446.3,0.1826661]
[1728845605110,3.3452641,2446.4,2446.3,0.1826661]
[1728845605313,0.40884,2446.3,2446.2,1.33]
[1728845605614,0.40885,2446.2,2446.1,1.20777]
[1728845605808,0.40885,2446.2,2446.1,1.39040493]
[1728845606012,0.40885,2446.2,2446.1,1.39040321]
[1728845606206,0.40885,2446.2,2446.1,1.20777]
[1728845606608,0.40885,2446.2,2446.1,1.39031705]
[1728845607210,0.40885,2446.2,2446.1,1.20777]
[1728845607712,0.40885,2446.2,2446.1,2.53777]
[1728845607912,0.3924,2446.3,2446.1,2.1289]
[1728845608114,0.80125,2446.3,2446.2,1.73885]
[1728845608830,0.80125,2446.3,2446.2,1.33]
[1728845609323,0.40883,2446.4,2446.3,0.40882]
[1728845609622,0.40883,2446.4,2446.3,1.73882]
[1728845609816,0.40883,2446.4,2446.3,1.33]
[1728845610223,0.40884,2446.3,2446.2,1.33]
[1728845610520,0.40884,2446.3,2446.2,1.73885]
[1728845611218,0.40884,2446.3,2446.2,1.33]
[1728845611927,5.2330441,2446.5,2446.2,1.33]
[1728845612124,0.40883,2446.4,2446.3,0.40883]
[1728845612325,0.40883,2446.4,2446.3,1.73883]
[1728845614619,0.40883,2446.4,2446.3,1.33]
[1728845614816,0.40883,2446.4,2446.3,1.73884]
[1728845615421,1.6064441,2446.7,2446.3,1.33]
[1728845615621,0.40881,2446.5,2446.4,2.14171]
[1728845616932,0.40881,2446.5,2446.4,2.14172]
[1728845621131,0.40881,2446.5,2446.4,0.4029]
[1728845621323,1.73881,2446.5,2446.4,0.4029]
[1728845621530,0.40881,2446.5,2446.4,0.4029]
[1728845622428,0.40881,2446.5,2446.4,1.7329]
[1728845623025,0.40881,2446.5,2446.4,2.1547]
[1728845624538,0.40881,2446.5,2446.4,2.56352]
[1728845625028,0.40881,2446.5,2446.4,2.1547]
[1728845626739,0.40881,2446.5,2446.4,2.56352]
[1728845626932,0.40881,2446.5,2446.4,2.1547]
[1728845627430,0.40881,2446.5,2446.4,2.56352]
[1728845631239,0.40881,2446.5,2446.4,2.74610188]
[1728845634137,0.40881,2446.5,2446.4,2.56352]
[1728845634339,0.40881,2446.5,2446.4,2.74614579]
[1728845639443,0.40881,2446.5,2446.4,3.54986982]
[1728845640147,0.40881,2446.5,2446.4,3.6776832]
[1728845640946,0.40881,2446.5,2446.4,3.49505741]
[1728845641247,0.40881,2446.5,2446.4,3.67790226]
[1728845641442,0.40881,2446.5,2446.4,3.1666934]
[1728845641850,0.40881,2446.5,2446.4,3.67794278]
[1728845644053,0.40881,2446.5,2446.4,3.67794974]
[1728845644557,0.40881,2446.5,2446.4,4.7498406]
[1728845644744,0.40881,2446.5,2446.4,3.16684778]
[1728845645056,0.40881,2446.5,2446.4,4.74999487]
[1728845647147,0.40881,2446.5,2446.4,4.75000405]
[1728845647449,2.0152541,2446.5,2446.4,4.75000405]
[1728845648552,2.0152541,2446.5,2446.4,4.74903035]
[1728845648853,2.0152541,2446.5,2446.4,6.07903909]
[1728845649048,2.0152541,2446.5,2446.4,4.75000485]
[1728845649450,2.0152541,2446.5,2446.4,6.07920843]
[1728845650352,2.0152541,2446.5,2446.4,6.07918449]
[1728845652550,2.0152541,2446.5,2446.4,5.47584673]
[1728845652756,2.0152541,2446.5,2446.4,6.07926378]
[1728845652950,2.0152541,2446.5,2446.4,5.56830622]
[1728845653458,2.0152541,2446.5,2446.4,6.07955844]
[1728845654058,2.0152541,2446.5,2446.4,6.07962397]
[1728845654359,2.0152541,2446.5,2446.4,5.00737229]
[1728845654558,2.0152541,2446.5,2446.4,6.61096625]
[1728845655059,2.0152541,2446.5,2446.4,5.28178661]
[1728845655259,2.0152541,2446.5,2446.4,6.0799126]
[1728845655658,2.0152541,2446.5,2446.4,5.00760059]
[1728845655958,2.0152541,2446.5,2446.4,6.07995622]
[1728845656358,2.0152541,2446.5,2446.4,6.19162495]
[1728845656551,2.0152541,2446.5,2446.4,6.31452449]
[1728845656854,2.0152541,2446.5,2446.4,7.79527716]
[1728845657256,2.0152541,2446.5,2446.4,6.08008844]
[1728845657456,2.0152541,2446.5,2446.4,6.97732879]
[1728845657649,2.0152541,2446.5,2446.4,7.79534816]
[1728845659960,2.0152541,2446.5,2446.4,7.79571398]
[1728845660664,2.0152541,2446.5,2446.4,7.79571735]
[1728845661062,0.40881,2446.5,2446.4,7.79579106]
[1728845661265,2.01617365,2446.5,2446.4,7.79579106]
[1728845661762,1.60736365,2446.5,2446.4,8.00029317]
[1728845663264,2.01616365,2446.5,2446.4,8.00029317]
[1728845664558,2.01616365,2446.5,2446.4,6.67044663]
[1728845664754,1.60736365,2446.5,2446.4,6.95410693]
[1728845664969,1.60736365,2446.5,2446.4,7.49084386]
[1728845665360,1.60736365,2446.5,2446.4,8.00208408]
[1728845665761,1.60736365,2446.6,2446.5,0.4088]
[1728845665967,1.60736365,2446.7,2446.6,0.40879]
[1728845666264,2.54442546,2446.9,2446.7,0.40877]
[1728845666265,1.60736365,2446.8,2446.7,0.40877]
[1728845666469,1.60736365,2446.8,2446.7,5.57374012]
[1728845666667,2.41860365,2446.9,2446.8,0.40875]
[1728845666968,2.41860365,2446.9,2446.8,6.58055345]
[1728845667173,2.41860365,2446.9,2446.8,4.97213967]
[1728845667363,2.41860365,2446.9,2446.8,4.60533726]
[1728845667566,2.41860365,2446.9,2446.8,5.67741533]
[1728845667961,1.60736365,2446.9,2446.8,5.67741533]
[1728845668266,1.60736365,2446.9,2446.8,6.08554703]
[1728845668461,1.60736365,2446.9,2446.8,6.21325042]
[1728845668663,1.60736365,2446.9,2446.8,5.676714]
[1728845669270,2.01609365,2447.0,2446.9,0.40874]
[1728845669466,2.01609365,2447.0,2446.9,4.30879295]
[1728845669669,1.60736365,2447.0,2446.9,4.30879295]
[1728845670062,2.01608365,2447.0,2446.9,4.30879295]
[1728845670470,0.40872,2447.0,2446.9,4.30879295]
[1728845670668,2.01608365,2447.0,2446.9,4.30879295]
[1728845671169,2.01608365,2447.0,2446.9,4.18100423]
[1728845671366,5.62638365,2447.1,2446.9,4.30879274]
[1728845671564,5.62638365,2447.1,2447.0,1.51318466]
[1728845675966,4.01902,2447.1,2447.0,1.51318466]
[1728845676166,5.62638365,2447.1,2447.0,1.51318466]
[1728845676770,0.81122,2447.1,2447.0,1.51318466]
[1728845676973,2.41858365,2447.1,2447.0,1.51318466]
[1728845677568,0.81122,2447.1,2447.0,1.51318466]
[1728845679669,1.02184,2447.0,2446.7,2.40187723]
[1728845679870,0.40875,2446.8,2446.7,2.40187723]
[1728845680172,0.40875,2446.8,2446.7,2.31699036]
[1728845680478,0.81745,2446.8,2446.7,2.31699036]
[1728845680878,0.81745,2446.8,2446.7,2.72576036]
[1728845681178,0.81745,2446.8,2446.7,3.79763759]
[1728845681572,0.81745,2446.8,2446.7,2.72576036]
[1728845681879,0.81745,2446.8,2446.7,3.79763759]
[1728845682677,0.81745,2446.8,2446.7,3.92543382]
[1728845682873,0.81745,2446.8,2446.7,3.79763759]
[1728845683082,0.81745,2446.8,2446.7,3.21404723]
[1728845683273,0.81745,2446.8,2446.7,3.90820426]
[1728845683474,0.81745,2446.8,2446.7,4.20100331]
[1728845683876,0.81745,2446.8,2446.7,4.32880079]
[1728845684872,0.81745,2446.8,2446.7,4.20100331]
[1728845685575,0.81745,2446.8,2446.7,4.3287998]
[1728845685777,0.81745,2446.8,2446.7,4.20100331]
[1728845687273,0.81745,2446.8,2446.7,4.32880013]
[1728845687581,0.81745,2446.8,2446.7,4.20100331]
[1728845687974,0.81745,2446.8,2446.7,4.3288]
[1728845688374,0.81745,2446.8,2446.7,4.32880299]
[1728845690879,0.4087,2446.8,2446.7,4.32880299]
[1728845691081,0.40872,2447.0,2446.9,0.40873]
[1728845691284,0.79142,2447.0,2446.9,1.92169796]
[1728845691682,0.79142,2447.0,2446.9,2.74389796]
[1728845691879,4.87782,2447.0,2446.9,2.74390136]
[1728845692687,4.87782,2447.0,2446.9,2.33311136]
[1728845692985,4.87782,2447.0,2446.9,1.92437136]
[1728845693784,4.87782,2447.0,2446.9,2.33311136]
[1728845694778,0.79142,2447.0,2446.9,2.33311136]
[1728845694991,4.87782,2447.0,2446.9,2.33311136]
[1728845697383,0.79142,2447.0,2446.9,2.33311136]
[1728845697890,0.3827,2447.0,2446.9,2.33311136]
[1728845698084,2.01607365,2447.1,2446.9,1.92437136]
[1728845698397,0.40871,2447.1,2447.0,0.59169136]
[1728845698691,2.01607365,2447.1,2447.0,1.01419136]
[1728845698989,0.40871,2447.1,2447.0,1.01419136]
[1728845699289,2.01607365,2447.1,2447.0,2.34419136]
[1728845699692,2.01607365,2447.1,2447.0,1.51297136]
[1728845699893,2.01607365,2447.1,2447.0,1.51302201]
[1728845700087,4.4804,2447.1,2446.9,1.7414]
[1728845700290,2.01502953,2447.0,2446.9,1.33]
[1728845700483,2.01502953,2447.0,2446.9,1.51303512]
[1728845700887,6.10142953,2447.0,2446.9,1.51303512]
[1728845702495,2.01502953,2447.0,2446.9,1.51301575]
[1728845702688,2.01502953,2447.0,2446.9,2.32365575]
[1728845702992,0.394,2447.1,2447.0,0.40872]
[1728845702993,2.01502953,2447.1,2447.0,0.40872]
[1728845703196,2.01502953,2447.1,2447.0,2.33163575]
[1728845706701,1.60630953,2447.1,2447.0,2.33163575]
[1728845706894,1.60630953,2447.1,2447.0,3.13573094]
[1728845707097,1.60630953,2447.1,2447.0,3.26351491]
[1728845707506,1.60630953,2447.1,2447.0,4.33539214]
[1728845709910,1.60630953,2447.1,2447.0,3.73163956]
[1728845710199,1.60630953,2447.1,2447.0,4.33542549]
[1728845710403,1.6080651,2447.1,2447.0,3.4156849]
[1728845710604,1.60837142,2447.1,2447.0,10.16027797]
[1728845710798,1.60837142,2447.1,2447.0,13.00520934]
[1728845710799,1.60834809,2447.1,2447.0,13.00520934]
[1728845711502,1.60834809,2447.1,2447.0,11.39679556]
[1728845712502,1.60834809,2447.1,2447.0,13.00366524]
[1728845712804,1.60834809,2447.1,2447.0,11.39679556]
[1728845713706,1.60834809,2447.1,2447.0,13.00353951]
[1728845714008,2.01704809,2447.1,2447.0,6.25713951]
[1728845714205,2.43794809,2447.1,2447.0,7.38269299]
[1728845715005,0.8296,2447.1,2447.0,4.95817485]
[1728845715198,2.43810963,2447.1,2447.0,6.5649188]
[1728845715503,0.8296,2447.1,2447.0,5.66293911]
[1728845716299,2.43807296,2447.1,2447.0,4.59184417]
[1728845716501,0.8296,2447.1,2447.0,5.66267012]
[1728845716999,2.43806053,2447.1,2447.0,5.66243616]
[1728845717208,0.8296,2447.1,2447.0,5.66243616]
[1728845717600,0.8296,2447.1,2447.0,5.47933175]
[1728845717907,0.8296,2447.1,2447.0,5.15093272]
[1728845718208,0.8296,2447.1,2447.0,5.66206667]
[1728845718400,2.43802645,2447.1,2447.0,5.66206667]
[1728845721001,0.8296,2447.1,2447.0,5.66206667]
[1728845721197,2.43797159,2447.1,2447.0,5.66069575]
[1728845721402,2.43797159,2447.1,2447.0,5.66058503]
[1728845722206,1.60837159,2447.1,2447.0,4.58999452]
[1728845722609,1.60837159,2447.1,2447.0,6.19673847]
[1728845722801,1.60837159,2447.1,2447.0,6.56268873]
[1728845723006,1.60837159,2447.1,2447.0,7.38048606]
[1728845723312,1.60837159,2447.1,2447.0,6.56268873]
[1728845723512,1.60837159,2447.1,2447.0,7.38048458]
[1728845723913,1.60837159,2447.1,2447.0,6.56268873]
[1728845724215,1.60837159,2447.1,2447.0,7.38047911]
[1728845724416,1.60837159,2447.1,2447.0,6.19673847]
[1728845725322,1.60837159,2447.1,2447.0,6.19657205]
[1728845725617,1.60837159,2447.1,2447.0,4.5898281]
[1728845726810,1.60837159,2447.1,2447.0,4.07869415]
[1728845727011,1.60837159,2447.1,2447.0,6.19656196]
[1728845727411,1.60837159,2447.1,2447.0,4.58981801]
[1728845727612,1.60837159,2447.1,2447.0,6.19656196]
[1728845728415,1.60837159,2447.1,2447.0,6.56241002]
[1728845728610,1.60837159,2447.1,2447.0,6.19656196]
[1728845728823,1.60837159,2447.1,2447.0,4.58981801]
[1728845729017,1.60837159,2447.1,2447.0,4.26648781]
[1728845729211,1.60837159,2447.1,2447.0,5.6849748]
[1728845729414,1.60837159,2447.1,2447.0,6.56195588]
[1728845729607,1.60837159,2447.1,2447.0,6.19609895]
[1728845729913,2.01707159,2447.1,2447.0,4.589355]
[1728845730123,2.40817159,2447.1,2447.0,5.65866129]
[1728845730316,2.40817159,2447.1,2447.0,5.65811938]
[1728845730516,2.40817159,2447.1,2447.0,5.65807805]
[1728845731117,1.99947159,2447.1,2447.0,5.65807805]
[1728845731313,1.99947159,2447.1,2447.0,5.65785718]
[1728845733217,1.99947159,2447.1,2447.0,5.52982845]
[1728845733527,1.99947159,2447.1,2447.0,4.58830311]
[1728845733823,1.99947159,2447.1,2447.0,7.37852828]
[1728845735026,2.40817159,2447.1,2447.0,7.37852828]
[1728845735219,2.40825003,2447.1,2447.0,5.65752575]
[1728845735524,0.7998,2447.1,2447.0,5.65752575]
[1728845736215,0.7998,2447.1,2447.0,3.50890575]
[1728845736419,6.14952546,2447.1,2447.0,2.44413609]
[1728845736620,10.66032546,2447.1,2447.0,1.84112366]
[1728845736924,10.66032546,2447.1,2447.0,2.31651959]
[1728845738719,15.8484,2447.1,2447.0,0.18280341]
[1728845738922,0.40875,2446.8,2446.7,1.0691845]
[1728845739229,2.55379756,2446.8,2446.7,2.59230518]
[1728845739420,2.55379756,2446.8,2446.7,2.08110218]
[1728845739622,2.55379756,2446.8,2446.7,1.11436458]
[1728845739928,2.97479756,2446.8,2446.7,2.18355301]
[1728845740424,2.56604756,2446.8,2446.6,1.4779545]
[1728845740624,2.97479756,2446.8,2446.7,2.31652366]
[1728845741219,2.97479756,2446.8,2446.7,1.80530677]
[1728845741422,2.97479756,2446.8,2446.7,1.51279035]
[1728845741825,0.82975,2446.8,2446.7,1.51279035]
[1728845742129,0.82975,2446.8,2446.7,1.80528269]
[1728845742328,0.82975,2446.8,2446.7,1.51279035]
[1728845743420,0.82975,2446.8,2446.7,1.51271741]
[1728845744329,0.82975,2446.8,2446.7,1.33]
[1728845744523,0.82975,2446.8,2446.7,1.5126751]
[1728845744733,2.43725545,2446.8,2446.7,1.33]
[1728845744920,2.43725545,2446.8,2446.7,1.51263899]
[1728845745123,0.82975,2446.8,2446.7,1.51263899]
[1728845746630,0.82975,2446.8,2446.7,1.93653899]
[1728845747630,2.43692534,2446.8,2446.7,1.93653899]
[1728845748226,2.43692534,2446.8,2446.7,1.7539]
[1728845748530,2.43692534,2446.8,2446.7,1.93648007]
[1728845751331,2.43692534,2446.8,2446.7,1.7539]
[1728845760436,2.02817534,2446.8,2446.4,1.8781845]
[1728845760737,1.73879,2446.6,2446.5,0.3999]
[1728845761038,1.73879,2446.6,2446.5,1.7299]
[1728845761039,0.40879,2446.6,2446.5,1.7299]
[1728845761639,2.01596534,2446.6,2446.5,1.7299]
[1728845762636,5.22376534,2446.6,2446.5,1.7299]
[1728845765243,3.61659,2446.6,2446.5,1.7299]
[1728845765444,5.22376534,2446.6,2446.5,1.7299]
[1728845766944,6.55376534,2446.6,2446.5,1.7299]
[1728845767246,6.55376534,2446.6,2446.5,0.3999]
[1728845767448,6.55376534,2446.6,2446.5,1.7299]
[1728845768347,5.22376534,2446.6,2446.5,1.7299]
[1728845768541,3.61659,2446.6,2446.5,2.1387]
[1728845768744,3.61659,2446.6,2446.5,1.7299]
[1728845769746,0.40879,2446.6,2446.5,1.7299]
[1728845774843,1.33,2446.6,2446.4,0.809]
[1728845775045,2.1632,2446.5,2446.4,0.4132]
[1728845775247,0.40884,2446.3,2446.2,2.1057]
[1728845775443,1.73884,2446.3,2446.2,2.2881857]
[1728845776045,5.82684,2446.3,2446.2,0.1824857]
[1728845776354,0.40889,2446.0,2445.9,2.1459]
[1728845776648,0.40889,2446.0,2445.9,2.32839005]
[1728845777743,0.40889,2446.0,2445.9,2.1459]
[1728845777945,0.40889,2446.0,2445.9,2.32835829]
[1728845778244,0.40889,2446.0,2445.9,2.1459]
[1728845782851,3.61668,2446.1,2445.9,2.73720469]
[1728845783048,3.61668,2446.1,2446.0,1.33]
[1728845783852,3.61668,2446.1,2446.0,1.73889]
[1728845784752,3.61668,2446.1,2446.0,1.33]
[1728845789552,3.61668,2446.1,2446.0,1.73889]
[1728845790051,3.61668,2446.1,2446.0,1.33]
[1728845792951,0.40888,2446.1,2446.0,1.33]
[1728845793155,3.61668,2446.1,2446.0,1.33]
[1728845793754,3.61668,2446.1,2446.0,1.73889]
[1728845794257,3.61668,2446.1,2446.0,1.33]
[1728845796255,0.40888,2446.1,2446.0,1.73889]
[1728845796664,0.40888,2446.1,2446.0,1.33]
[1728845797159,2.01500108,2446.3,2446.1,0.40886]
[1728845797363,2.01500108,2446.3,2446.2,2.1532]
[1728845797664,2.01500108,2446.3,2446.2,2.56205]
[1728845798060,2.01500108,2446.3,2446.2,2.1532]
[1728845798763,1.60615108,2446.3,2446.2,2.1532]
[1728845798967,1.60615108,2446.5,2446.4,0.40882]
[1728845799162,3.6166,2446.5,2446.4,1.33]
[1728845799667,3.6166,2446.5,2446.4,1.73882]
[1728845802453,0.4088,2446.5,2446.4,1.73882]
[1728845802657,3.6166,2446.5,2446.4,1.73882]
[1728845803067,3.6166,2446.5,2446.4,1.92120101]
[1728845804366,3.2078,2446.5,2446.4,1.92120101]
[1728845804767,0.4088,2446.5,2446.4,1.921224]
[1728845805163,4.81395108,2446.6,2446.4,1.921224]
[1728845805365,5.22275108,2446.6,2446.5,1.33]
[1728845805662,5.22275108,2446.6,2446.5,1.7388]